bitfinex/quotes_ETHUSD_20240716
["timestamp","ask_amount","ask_price","bid_price","bid_amount"]
[1721159594958,0.90382978,3476.7,3476.6,3.42637]
[1721159595131,1.20517047,3476.9,3476.6,4.18073998]
[1721159595334,0.9034283,3476.7,3476.6,4.18073998]
[1721159596457,0.9034283,3476.7,3476.6,7.05710998]
[1721159596856,0.9034283,3476.7,3476.6,4.18073998]
[1721159597650,0.9034283,3476.8,3476.6,4.18073998]
[1721159597857,0.9034283,3476.8,3476.7,3.582002]
[1721159598154,0.9034283,3476.8,3476.7,4.132002]
[1721159598451,0.90312301,3476.8,3476.7,4.131922]
[1721159599083,1.20517047,3476.9,3476.7,1.255712]
[1721159599242,1.20517047,3476.8,3476.7,1.255712]
[1721159599438,1.20517047,3476.8,3476.4,2.8765]
[1721159599675,0.90315595,3476.6,3476.3,2.8766]
[1721159599890,0.6020976,3476.5,3476.4,2.87652]
[1721159600043,0.96992892,3476.5,3476.4,2.8765]
[1721159600378,0.06677297,3476.5,3476.4,3.99640275]
[1721159602450,0.66888755,3476.5,3476.4,6.87293275]
[1721159602659,0.06677297,3476.5,3476.4,7.42293275]
[1721159602895,0.66887274,3476.5,3476.4,7.42293275]
[1721159603388,0.06677297,3476.5,3476.4,7.42293275]
[1721159610091,0.06677297,3476.5,3476.4,3.99640275]
[1721159610291,0.06677297,3476.5,3476.2,2.8767]
[1721159610513,0.06677297,3476.4,3476.2,2.8767]
[1721159610885,0.66887274,3476.4,3476.2,2.8767]
[1721159611092,0.66887274,3476.4,3476.1,7.37]
[1721159611334,0.60209977,3476.2,3476.0,0.30009556]
[1721159611625,0.96992892,3476.4,3476.0,3.17695556]
[1721159611626,0.66887274,3476.1,3476.0,3.17695556]
[1721159611826,0.06677297,3476.1,3476.0,3.17695556]
[1721159612402,0.06677297,3476.1,3476.0,6.95920512]
[1721159612591,0.06677297,3476.1,3476.0,7.50920512]
[1721159612817,0.06677297,3476.1,3476.0,3.72695556]
[1721159615111,0.06677297,3476.1,3476.0,6.60381556]
[1721159617143,0.06677297,3476.1,3476.0,8.89011556]
[1721159617321,0.06677297,3476.1,3476.0,6.60381556]
[1721159617714,0.06677297,3476.1,3476.0,3.72695556]
[1721159618624,0.66887274,3476.1,3476.0,0.30009556]
[1721159618833,1.24764884,3476.1,3476.0,0.30009556]
[1721159619049,0.34449289,3476.1,3476.0,0.30009556]
[1721159619262,1.54966336,3476.1,3476.0,0.30009556]
[1721159619414,1.26066336,3476.1,3476.0,0.30009556]
[1721159619611,1.26066336,3476.1,3475.1,10.24758]
[1721159619612,1.56125752,3476.1,3475.1,10.24758]
[1721159619812,0.5058171,3475.7,3475.1,10.24758]
[1721159620068,0.60234481,3475.5,3475.2,0.30017308]
[1721159620246,0.60234481,3475.6,3475.2,3.30017308]
[1721159620412,1.20465368,3476.0,3475.2,6.17765308]
[1721159620619,1.20465368,3476.1,3475.6,2.87716]
[1721159620932,1.20465368,3476.2,3475.6,2.87716]
[1721159621128,1.20465368,3476.1,3475.4,2.87729]
[1721159621435,1.20465368,3476.1,3475.2,6.17767308]
[1721159621436,1.20465368,3475.8,3475.2,6.17767308]
[1721159621807,3.65115368,3475.8,3475.2,3.17767308]
[1721159622012,1.20465368,3475.6,3475.2,0.30017308]
[1721159623223,1.20465368,3475.7,3475.2,0.30017308]
[1721159623968,3.65115368,3475.8,3475.2,0.30017308]
[1721159624147,1.20465368,3475.7,3475.2,0.30017308]
[1721159624744,2.4465,3475.8,3475.2,0.30017308]
[1721159624745,3.65115368,3475.8,3475.2,0.30017308]
[1721159625186,1.20465368,3475.7,3475.2,0.30017308]
[1721159626272,1.20465368,3475.6,3475.2,0.30017308]
[1721159626783,1.20465368,3475.5,3475.2,0.30017308]
[1721159626983,1.20465368,3475.6,3475.2,0.30017308]
[1721159627186,1.20465368,3475.5,3475.2,0.30017308]
[1721159628086,1.20465368,3475.6,3475.2,0.30017308]
[1721159628261,1.20465368,3475.7,3475.2,1.64272839]
[1721159628646,3.65115368,3475.8,3475.2,1.64272839]
[1721159628849,0.90345459,3475.6,3475.2,0.30017308]
[1721159629291,0.90345459,3475.5,3475.2,3.17768308]
[1721159629460,0.90345459,3475.5,3475.2,0.30017308]
[1721159629869,1.20465368,3475.7,3475.2,0.30017308]
[1721159629870,0.90345459,3475.6,3475.2,3.17768308]
[1721159630170,0.90345459,3475.8,3475.5,2.87728]
[1721159630369,1.20465368,3475.9,3475.6,2.8772]
[1721159630370,0.90345459,3475.9,3475.6,2.8772]
[1721159630864,0.90345459,3475.8,3475.6,2.8772]
[1721159631065,0.90345459,3475.9,3475.6,2.8772]
[1721159631454,0.90345459,3475.8,3475.4,3.1774608]
[1721159631654,0.90345459,3475.7,3475.4,0.3001008]
[1721159631967,0.90345459,3475.7,3475.5,2.87727]
[1721159632289,0.90345459,3475.8,3475.5,3.54328951]
[1721159632456,0.90345459,3475.8,3475.4,0.3001008]
[1721159632653,0.90345459,3475.7,3475.4,0.3001008]
[1721159633173,0.90345459,3475.7,3475.4,3.1774508]
[1721159634055,0.90345459,3475.7,3475.4,0.3001008]
[1721159634794,0.90345459,3475.6,3475.4,0.3001008]
[1721159636080,0.90345459,3475.7,3475.4,0.3001008]
[1721159636270,0.90345459,3475.6,3475.4,0.3001008]
[1721159636472,0.90345459,3475.7,3475.4,0.3001008]
[1721159636866,0.90345459,3475.6,3475.4,0.3001008]
[1721159638723,4.38235094,3476.0,3475.4,0.3001008]
[1721159638724,0.90345459,3475.7,3475.4,0.3001008]
[1721159638879,0.90345459,3475.7,3475.4,0.61786488]
[1721159639208,0.90345459,3475.8,3475.4,0.61786488]
[1721159640010,0.90345459,3475.8,3475.4,0.3001008]
[1721159640597,0.90345459,3475.9,3475.4,3.1774508]
[1721159641189,0.90345459,3475.8,3475.4,3.1774508]
[1721159641404,0.90345459,3475.9,3475.4,3.1774508]
[1721159641601,0.90345459,3476.0,3475.6,2.87718]
[1721159641805,0.90345459,3476.1,3475.6,3.40219101]
[1721159642014,0.90345459,3476.1,3475.7,2.87711]
[1721159643030,0.90345459,3476.2,3475.7,2.87711]
[1721159644221,0.90345459,3476.1,3475.5,0.30009957]
[1721159644430,0.90345459,3476.0,3475.5,3.17737957]
[1721159644726,0.90345459,3476.0,3475.5,4.02999553]
[1721159645088,1.20465368,3476.2,3475.5,4.02999553]
[1721159645089,0.90345459,3476.1,3475.5,4.02999553]
[1721159645289,0.90345459,3476.0,3475.5,0.30009957]
[1721159645486,0.90345459,3475.8,3475.5,0.30009957]
[1721159646228,0.90345459,3475.7,3475.5,0.30009957]
[1721159646430,0.90345459,3475.8,3475.5,0.30009957]
[1721159646631,0.90345459,3475.9,3475.5,0.30009957]
[1721159646951,0.90345459,3476.1,3475.6,3.19492296]
[1721159647091,0.90345459,3476.0,3475.6,2.87717]
[1721159647292,0.90345459,3476.1,3475.6,2.87717]
[1721159648128,0.90345459,3476.1,3475.7,2.8771]
[1721159648447,0.90345459,3476.2,3475.7,2.8771]
[1721159648601,0.90345459,3476.2,3475.8,2.87703]
[1721159648936,0.90345459,3476.3,3475.8,5.75398]
[1721159649234,0.90345459,3476.3,3475.8,2.87695]
[1721159649599,0.90345459,3476.2,3475.8,2.87695]
[1721159649800,0.90345459,3476.3,3475.8,2.87695]
[1721159650204,0.90345459,3476.2,3475.8,2.87695]
[1721159650423,0.90345459,3476.2,3475.8,3.54348903]
[1721159651413,0.90345459,3476.1,3475.5,0.30009957]
[1721159651636,0.90345459,3475.9,3475.5,0.30009957]
[1721159652239,0.90345459,3475.7,3475.5,0.30009957]
[1721159652742,0.90345459,3475.6,3475.5,0.30009957]
[1721159654207,0.90345459,3475.7,3475.5,0.30009957]
[1721159654436,0.90345459,3475.7,3475.6,0.31774496]
[1721159654837,0.90345459,3475.7,3475.6,3.19494496]
[1721159655054,0.90345459,3475.8,3475.6,3.19494496]
[1721159655210,1.20465368,3475.8,3475.6,3.19494496]
[1721159655412,1.20465368,3475.8,3475.6,0.31774496]
[1721159655607,1.20465368,3475.8,3475.5,0.30009957]
[1721159655847,1.20465368,3475.7,3475.5,0.30009957]
[1721159656219,1.20465368,3475.6,3475.5,0.30009957]
[1721159656830,2.8772,3475.6,3475.5,0.30009957]
[1721159657134,2.87737,3475.4,3474.5,2.87807]
[1721159657336,0.90497448,3474.9,3474.5,2.87807]
[1721159657555,0.90497448,3474.9,3474.5,4.434023]
[1721159657742,0.90497448,3474.9,3474.6,3.17817862]
[1721159658656,0.90497448,3474.9,3474.6,0.30016862]
[1721159659149,0.90497448,3474.9,3474.6,3.17818862]
[1721159660449,0.90497448,3474.8,3474.6,0.30016862]
[1721159660662,0.90497448,3474.8,3474.6,1.75391278]
[1721159660826,0.90497448,3474.9,3474.6,1.75391278]
[1721159662327,0.90497448,3474.9,3474.6,0.30016862]
[1721159662567,0.90497448,3474.7,3474.6,0.30016862]
[1721159663044,1.20663264,3474.8,3474.6,0.30016862]
[1721159663246,1.20663264,3474.7,3474.6,0.30016862]
[1721159663574,1.50822637,3474.9,3474.6,0.30016862]
[1721159663575,0.43857664,3474.9,3474.6,0.30016862]
[1721159663770,1.50893884,3474.8,3474.6,0.30016862]
[1721159663945,1.50893884,3474.7,3474.0,22.61]
[1721159664141,0.90538606,3474.4,3474.0,19.61]
[1721159664340,0.90538606,3474.3,3474.2,0.30024402]
[1721159665170,0.90538606,3474.4,3474.2,0.30024402]
[1721159665644,0.90538606,3474.4,3474.2,3.17852402]
[1721159665840,0.90538606,3474.5,3474.3,2.87821]
[1721159666352,0.90538606,3474.6,3474.3,2.87821]
[1721159666561,0.90538606,3474.5,3474.2,0.30024402]
[1721159666765,1.20718141,3474.4,3474.2,0.30024402]
[1721159667480,0.90487329,3474.3,3474.2,0.30024402]
[1721159667980,1.20718141,3474.4,3474.2,0.30024402]
[1721159668147,0.9046804,3474.3,3474.2,0.30024402]
[1721159669235,0.9046804,3474.4,3474.2,1.35511942]
[1721159669967,1.20718141,3474.6,3474.2,1.35511942]
[1721159669968,0.9046804,3474.3,3474.2,0.30024402]
[1721159670140,0.9046804,3474.4,3474.2,0.30024402]
[1721159670663,0.9046804,3474.3,3474.2,0.30024402]
[1721159671034,1.20718141,3474.4,3474.2,0.30024402]
[1721159672374,0.90392672,3474.3,3474.2,0.30024402]
[1721159672765,1.50742553,3474.7,3474.2,0.30024402]
[1721159672766,0.90392672,3474.4,3474.2,0.30024402]
[1721159674260,0.90392672,3474.6,3474.3,2.87823]
[1721159674773,0.90392672,3474.6,3474.2,0.90597242]
[1721159674961,0.90392672,3474.6,3474.2,3.78432242]
[1721159675358,0.90392672,3474.5,3474.2,0.30024402]
[1721159675559,0.90392672,3474.4,3474.2,0.30024402]
[1721159675869,0.90392672,3474.5,3474.2,0.30024402]
[1721159676769,0.90392672,3474.4,3474.2,0.30024402]
[1721159676947,0.90392672,3474.5,3474.2,0.30024402]
[1721159677486,1.20718141,3474.6,3474.2,0.30024402]
[1721159677487,0.90392672,3474.6,3474.2,0.90596142]
[1721159677656,0.90392672,3474.6,3474.2,0.30024402]
[1721159677846,0.90392672,3474.4,3474.2,0.30024402]
[1721159679287,2.87827,3474.3,3474.2,0.30024402]
[1721159679444,2.87841,3474.2,3473.6,7.37]
[1721159679780,0.90319907,3474.0,3473.6,0.30027024]
[1721159680464,1.20426543,3474.1,3473.7,2.87871]
[1721159680465,0.90319907,3474.1,3473.7,2.87871]
[1721159680647,0.90319907,3474.2,3473.7,2.87871]
[1721159680982,0.90319907,3474.3,3473.8,2.87866]
[1721159681391,0.90319907,3474.4,3473.9,2.87858]
[1721159681551,0.90319907,3474.5,3474.1,2.87839]
[1721159681878,1.50528633,3474.8,3474.2,2.87833]
[1721159681879,0.90319907,3474.8,3474.2,2.87833]
[1721159682050,0.90319907,3475.0,3474.5,2.87809]
[1721159682250,0.90319907,3475.1,3474.5,2.87809]
[1721159682957,0.90319907,3475.1,3474.3,5.2777]
[1721159683155,0.90319907,3475.0,3474.3,2.8538626]
[1721159683361,0.90319907,3475.1,3474.5,2.8781]
[1721159683577,0.90319907,3475.1,3474.6,2.87796]
[1721159684078,0.90319907,3475.1,3474.5,2.8781]
[1721159684287,1.20426543,3475.3,3474.8,2.87786]
[1721159684288,0.90319907,3475.2,3474.8,2.87786]
[1721159684575,0.90319907,3475.4,3474.9,0.575579]
[1721159684782,0.90319907,3475.4,3474.9,3.453349]
[1721159685087,1.50426332,3475.7,3475.0,2.87768]
[1721159685088,0.90319907,3475.5,3475.0,2.87768]
[1721159685290,0.90319907,3475.5,3475.1,0.6331029]
[1721159685785,0.90319907,3475.6,3475.1,0.6331029]
[1721159685991,0.90319907,3475.4,3474.8,2.8778]
[1721159686155,0.90319907,3475.3,3474.7,2.87794]
[1721159686568,3.31359907,3475.3,3474.3,0.4543626]
[1721159686767,3.31359907,3475.3,3474.3,3.0]
[1721159686768,0.90319907,3475.0,3474.3,3.0]
[1721159686968,0.90319907,3475.0,3474.2,5.87835]
[1721159687196,0.90319907,3475.0,3474.3,2.87819]
[1721159687489,0.90319907,3475.0,3474.4,2.87818]
[1721159687691,0.90319907,3475.0,3474.3,2.87819]
[1721159688493,0.90319907,3475.0,3474.3,1.612661]
[1721159689078,0.90319907,3475.1,3474.3,1.612661]
[1721159689290,0.90319907,3475.0,3474.3,1.612661]
[1721159689871,0.90319907,3475.0,3474.2,3.0]
[1721159690367,0.90319907,3475.0,3474.2,5.87835]
[1721159690698,0.90319907,3475.0,3474.5,2.87805]
[1721159690900,0.90319907,3475.1,3474.5,2.87805]
[1721159691265,0.90319907,3475.1,3474.6,0.575616]
[1721159691864,0.90319907,3475.1,3474.5,2.87805]
[1721159692983,0.90319907,3475.1,3474.5,5.75609]
[1721159693409,0.90319907,3475.1,3474.5,2.87804]
[1721159693590,0.90319907,3475.1,3474.6,2.87802]
[1721159694797,0.90319907,3475.1,3474.7,2.87789]
[1721159695296,0.90319907,3475.1,3474.7,3.694694]
[1721159695602,0.90319907,3475.0,3474.7,3.694694]
[1721159696407,1.20426543,3475.2,3474.7,3.694694]
[1721159696408,0.90319907,3475.1,3474.8,2.87783]
[1721159696780,0.90319907,3475.2,3474.8,2.87783]
[1721159696989,0.90319907,3475.2,3475.0,2.87769]
[1721159697589,0.90319907,3475.1,3475.0,2.87769]
[1721159697888,1.20426543,3475.2,3474.9,0.6572524]
[1721159697889,0.90319907,3475.2,3474.9,0.6572524]
[1721159698089,0.90319907,3475.0,3474.9,3.5350224]
[1721159698290,0.90319907,3475.1,3475.0,2.87769]
[1721159698612,0.90319907,3475.1,3475.0,3.60064364]
[1721159700114,0.90319907,3475.2,3475.0,3.60064364]
[1721159700314,0.90319907,3475.2,3475.0,3.60059364]
[1721159700513,0.90319907,3475.3,3475.0,3.60059364]
[1721159700692,0.90319907,3475.3,3475.1,0.36005936]
[1721159701538,0.90319907,3475.4,3475.1,3.23766936]
[1721159701691,0.90319907,3475.3,3475.1,3.23766936]
[1721159701891,0.90319907,3475.3,3475.1,0.36005936]
[1721159702091,0.90319907,3475.3,3475.0,2.87768]
[1721159702394,1.20426543,3475.1,3474.7,2.87792]
[1721159702594,0.90501803,3475.0,3474.7,2.87792]
[1721159702794,1.20426543,3475.1,3474.9,2.87778]
[1721159703118,0.9049914,3475.0,3474.9,2.87778]
[1721159703825,1.20426543,3475.0,3474.7,2.87794]
[1721159703993,0.9050456,3474.8,3474.7,2.87794]
[1721159704600,0.9050456,3474.9,3474.7,2.87794]
[1721159705090,0.9050456,3475.0,3474.7,3.406934]
[1721159705599,0.9050456,3475.1,3474.7,3.406864]
[1721159705811,0.9050456,3475.1,3474.9,2.87773]
[1721159706589,0.9050456,3475.1,3475.0,2.87769]
[1721159706985,0.9050456,3475.1,3474.8,3.42781]
[1721159707190,0.9050456,3475.0,3474.8,3.42781]
[1721159707720,0.9050456,3475.0,3474.9,2.87778]
[1721159707899,0.9050456,3475.0,3474.9,3.42778]
[1721159708523,0.9050456,3475.1,3475.0,2.87769]
[1721159709399,0.9050456,3475.1,3475.0,3.5611444]
[1721159709599,0.9050456,3475.2,3475.0,3.5611444]
[1721159711433,0.9050456,3475.3,3475.1,2.87761]
[1721159711634,0.9050456,3475.4,3475.3,2.87744]
[1721159711819,0.9050456,3475.5,3475.4,2.87736]
[1721159712205,0.9050456,3475.5,3475.4,3.42736]
[1721159712834,0.9050456,3475.6,3475.5,2.87728]
[1721159713048,0.9050456,3475.6,3475.5,4.282822]
[1721159715218,0.9050456,3475.6,3475.5,1.405542]
[1721159715444,0.9050456,3475.6,3475.3,2.87744]
[1721159715445,0.9050456,3475.6,3475.1,2.87758]
[1721159715719,2.4544,3476.4,3475.0,0.6834544]
[1721159715720,0.9050456,3475.5,3475.0,3.5611344]
[1721159715915,0.9050456,3475.6,3474.8,2.87781]
[1721159716122,0.9050456,3475.3,3474.7,10.37]
[1721159716426,0.9050456,3475.0,3474.7,7.37]
[1721159718225,0.9050456,3474.9,3474.7,7.37]
[1721159719050,0.9050456,3474.9,3474.5,3.1781049]
[1721159720258,0.9050456,3474.9,3474.6,2.87802]
[1721159721652,0.9050456,3474.9,3474.7,2.87791]
[1721159721981,0.9050456,3474.9,3474.8,3.48346149]
[1721159722122,0.9050456,3475.0,3474.8,3.48346149]
[1721159722478,0.9050456,3475.1,3474.9,2.87776]
[1721159722619,0.9050456,3475.2,3475.0,3.77602615]
[1721159722824,0.9050456,3475.4,3475.2,2.87753]
[1721159723343,1.20670109,3475.4,3475.2,2.87753]
[1721159724058,1.20670109,3475.4,3475.0,6.65364615]
[1721159724246,0.90488996,3475.2,3475.0,6.65364615]
[1721159725027,0.90488996,3475.2,3475.0,3.77595615]
[1721159725229,0.90519575,3475.2,3475.1,0.62159562]
[1721159726258,1.20670109,3475.3,3475.2,2.87751]
[1721159726645,1.20670109,3475.4,3475.3,5.75488]
[1721159726847,1.20670109,3475.5,3475.4,2.87736]
[1721159727737,1.20670109,3475.5,3475.4,5.75472]
[1721159728053,1.20670109,3475.7,3475.5,2.87722]
[1721159728238,0.90583783,3475.6,3475.5,2.87722]
[1721159728435,1.20670109,3475.7,3475.5,2.87722]
[1721159729026,1.20670109,3475.8,3475.7,2.87711]
[1721159729249,0.90569386,3475.8,3475.7,2.87711]
[1721159729426,0.90569386,3475.8,3475.7,3.77214416]
[1721159730467,0.90569386,3475.9,3475.8,2.87703]
[1721159732461,0.90569386,3476.0,3475.8,2.87703]
[1721159733271,0.9049752,3476.0,3475.9,2.87695]
[1721159733456,0.9049752,3476.0,3475.9,3.77333142]
[1721159734064,0.9049752,3476.0,3475.9,6.65028142]
[1721159734264,0.90482956,3476.3,3476.2,2.8767]
[1721159734465,0.90482956,3476.5,3476.4,2.87653]
[1721159734779,1.20670109,3476.8,3476.6,2.87637]
[1721159735448,1.20670109,3476.8,3476.5,2.87645]
[1721159735449,0.90413176,3476.8,3476.7,2.87629]
[1721159735647,0.90413176,3476.9,3476.7,2.87629]
[1721159735844,0.90413176,3476.8,3476.7,2.87629]
[1721159736247,0.90413176,3476.9,3476.7,2.87629]
[1721159736584,0.90413176,3477.0,3476.7,2.87629]
[1721159736767,0.90413176,3477.0,3476.7,3.451564]
[1721159737440,0.90413176,3477.1,3476.7,3.451564]
[1721159737894,0.90413176,3477.0,3476.7,3.451564]
[1721159738266,0.90413176,3477.0,3476.9,2.87612]
[1721159738468,0.1525938,3477.2,3477.1,2.87595]
[1721159738785,0.1525938,3477.2,3477.1,3.683122]
[1721159738985,0.1525938,3477.2,3477.1,3.74063637]
[1721159739390,0.1525938,3477.2,3477.1,7.16658505]
[1721159740071,0.1525938,3477.2,3477.1,9.60258505]
[1721159740390,0.1525938,3477.2,3477.1,17.857322]
[1721159741383,0.90413176,3478.7,3478.4,2.87486]
[1721159741687,0.90413176,3478.9,3478.5,2.87478]
[1721159741996,0.90413176,3479.1,3478.5,2.87478]
[1721159742290,0.90413176,3479.2,3478.6,2.87466]
[1721159742495,0.90413176,3479.4,3478.4,2.87486]
[1721159742696,2.4211,3478.6,3476.8,2.2775]
[1721159742882,2.87506,3478.2,3477.2,2.87585]
[1721159743195,2.87506,3478.2,3477.3,2.87579]
[1721159743990,3.62780109,3478.6,3477.3,2.87579]
[1721159743991,2.87497,3478.3,3477.3,2.87579]
[1721159745390,2.8752,3478.1,3476.9,5.87609]
[1721159745592,0.90413176,3478.6,3477.1,2.87588]
[1721159745593,2.2722,3478.0,3477.1,2.87588]
[1721159745759,5.14742,3478.0,3477.2,3.0]
[1721159747278,5.14742,3478.0,3476.7,5.31225]
[1721159747279,2.87538,3477.8,3476.7,5.31225]
[1721159747499,2.87538,3477.8,3476.0,0.58831853]
[1721159747500,7.7432,3478.0,3476.0,0.30001853]
[1721159747798,2.87596,3477.1,3476.2,2.87662]
[1721159748701,2.87596,3477.1,3476.3,2.8766]
[1721159749197,2.87596,3477.1,3476.3,3.48192385]
[1721159749373,2.87581,3477.3,3476.3,3.48192385]
[1721159749578,2.87587,3477.2,3476.3,3.48192385]
[1721159750084,2.87587,3477.2,3476.4,2.87653]
[1721159750304,2.87557,3477.6,3476.5,3.42645]
[1721159750483,2.87572,3477.4,3476.5,3.42645]
[1721159750884,0.90178818,3477.5,3476.6,2.87636]
[1721159751103,2.3628,3477.8,3476.7,2.87622]
[1721159751470,5.3628,3477.8,3476.7,2.87622]
[1721159751798,2.87555,3477.6,3476.7,2.87622]
[1721159752201,2.87555,3477.6,3476.5,0.55]
[1721159752507,2.87571,3477.4,3476.5,0.55]
[1721159752705,0.575126,3477.3,3476.5,0.55]
[1721159752906,0.575126,3477.3,3476.5,3.42644]
[1721159753313,0.575126,3477.3,3476.5,0.55]
[1721159753512,0.575126,3477.3,3476.5,2.87645]
[1721159753803,0.575126,3477.3,3476.3,0.55]
[1721159754407,0.575126,3477.3,3476.5,2.87644]
[1721159754778,2.87571,3477.4,3476.5,2.87644]
[1721159755314,2.87571,3477.4,3476.6,2.87637]
[1721159756919,2.87555,3477.6,3476.6,2.87637]
[1721159757295,2.87546,3477.7,3476.7,2.87624]
[1721159757516,2.87546,3477.7,3476.8,2.8762]
[1721159757695,0.90413176,3478.0,3476.8,2.8762]
[1721159758018,0.90413176,3478.1,3476.9,0.55]
[1721159758224,9.24558176,3478.2,3477.0,2.87598]
[1721159758519,2.87527,3478.0,3477.0,3.5637241]
[1721159758718,3.0,3477.9,3477.0,3.5637241]
[1721159758877,3.0,3477.9,3477.1,2.87595]
[1721159759310,3.0,3477.9,3477.0,3.5637241]
[1721159759311,6.24558176,3478.2,3477.2,2.87587]
[1721159759489,2.87515,3478.1,3477.2,2.87587]
[1721159759691,2.87522,3478.0,3477.3,0.64395941]
[1721159760322,2.87522,3478.0,3477.1,2.87592]
[1721159761493,2.87522,3478.0,3477.1,2.87588]
[1721159761690,2.87522,3478.0,3477.2,2.87586]
[1721159762090,2.87522,3478.0,3477.0,2.87602]
[1721159762333,2.87556,3477.6,3476.7,0.575261]
[1721159762478,2.87556,3477.6,3476.8,0.5872071]
[1721159763190,2.87543,3477.8,3476.8,3.4633971]
[1721159763732,2.87543,3477.8,3476.8,0.5872071]
[1721159763733,2.87556,3477.6,3476.8,0.5872071]
[1721159764027,2.3005,3477.5,3476.7,3.0]
[1721159764516,2.3005,3477.5,3476.6,3.0]
[1721159764898,2.3005,3477.5,3476.6,5.87635]
[1721159765076,5.3355,3477.5,3476.3,0.3003729]
[1721159765283,4.67528005,3478.4,3476.3,0.3003729]
[1721159765284,2.87642,3476.6,3476.3,0.3003729]
[1721159766330,0.90413176,3476.7,3476.3,0.3003729]
[1721159766540,2.87653,3476.4,3475.5,2.87727]
[1721159766883,3.78066176,3476.4,3475.5,2.87727]
[1721159767130,3.78066176,3476.4,3475.6,0.85329342]
[1721159767131,2.87653,3476.4,3475.6,0.85329342]
[1721159769601,3.78066176,3476.4,3475.6,0.85329342]
[1721159769797,2.87653,3476.4,3475.6,0.85329342]
[1721159770329,3.78060176,3476.5,3475.6,3.73048342]
[1721159770824,3.78072176,3476.4,3475.6,0.85329342]
[1721159771025,0.90413176,3476.3,3475.6,0.85329342]
[1721159771614,3.78075176,3476.3,3475.3,2.77836423]
[1721159771816,2.87687,3476.0,3475.3,0.30046423]
[1721159772605,6.27880176,3476.0,3475.3,0.30046423]
[1721159772803,3.40193176,3476.0,3475.3,0.30046423]
[1721159773008,4.37980155,3476.3,3475.3,0.30046423]
[1721159773009,0.90413176,3476.1,3475.4,2.8773]
[1721159773212,3.78080176,3476.3,3475.5,0.90552842]
[1721159774327,0.90413176,3476.2,3475.5,0.90552842]
[1721159774628,0.90413176,3476.3,3475.5,3.78279842]
[1721159775128,0.90413176,3476.4,3475.8,2.87701]
[1721159775375,0.90413176,3476.5,3475.8,2.87701]
[1721159775549,0.90413176,3476.5,3475.9,0.804559]
[1721159776080,0.90413176,3476.4,3475.9,0.804559]
[1721159776237,0.90413176,3476.4,3475.6,2.2914]
[1721159776423,0.90413176,3476.4,3475.6,5.16859]
[1721159777238,0.90413176,3476.4,3475.7,2.87709]
[1721159777433,0.90413176,3476.4,3475.8,2.87703]
[1721159777862,4.08308109,3476.6,3475.8,2.87703]
[1721159777863,0.90413176,3476.5,3475.8,2.87703]
[1721159778020,0.90413176,3476.4,3475.8,3.48442584]
[1721159779028,0.90413176,3476.4,3475.8,0.60739584]
[1721159779247,0.90413176,3476.3,3475.5,0.90552842]
[1721159779655,0.90413176,3476.3,3475.5,3.78278842]
[1721159779965,3.78073176,3476.4,3475.5,0.90552842]
[1721159780118,0.90413176,3476.4,3475.6,2.87719]
[1721159780317,0.90413176,3476.4,3475.7,0.69605389]
[1721159780758,0.90413176,3476.4,3475.8,2.877]
[1721159780969,0.90413176,3476.4,3475.7,3.57315389]
[1721159781434,0.90413176,3476.5,3475.8,2.87703]
[1721159781642,0.90413176,3476.5,3475.9,0.64501839]
[1721159782039,0.90413176,3476.6,3475.9,0.64501839]
[1721159782766,0.90413176,3476.7,3476.1,2.87674]
[1721159782939,0.90413176,3476.8,3476.2,0.88714984]
[1721159783564,4.37921342,3477.1,3476.2,0.88714984]
[1721159783565,0.90413176,3476.9,3476.2,0.88714984]
[1721159783725,0.90413176,3476.9,3476.3,2.8766]
[1721159784431,0.90413176,3476.8,3475.9,5.34971]
[1721159784632,0.90413176,3476.7,3475.9,5.34971]
[1721159784838,0.90413176,3476.7,3475.9,6.172392]
[1721159784839,3.78043176,3476.7,3475.9,6.172392]
[1721159785053,0.90413176,3476.6,3475.9,6.172392]
[1721159785956,3.78043176,3476.7,3475.9,6.172392]
[1721159786469,0.90413176,3476.6,3475.9,6.172392]
[1721159787070,3.78043176,3476.7,3475.9,6.172392]
[1721159787456,3.78055176,3476.6,3475.6,0.30043859]
[1721159787766,3.78055176,3476.6,3475.7,2.8771]
[1721159788471,0.90413176,3476.5,3475.7,2.8771]
[1721159789354,0.90413176,3476.5,3475.7,2.87703]
[1721159789796,0.90413176,3476.5,3475.8,2.87699]
[1721159790074,0.90413176,3476.5,3475.9,0.60544586]
[1721159790863,0.90413176,3476.5,3476.0,2.87683]
[1721159791377,0.90413176,3476.4,3475.7,2.87711]
[1721159791590,0.90413176,3476.2,3475.6,0.30043859]
[1721159791794,1.40286005,3476.2,3475.6,0.30043859]
[1721159791992,0.90413176,3475.9,3475.6,0.30043859]
[1721159792282,0.90413176,3475.8,3475.6,0.30043859]
[1721159792650,1.20670109,3475.8,3475.6,0.30043859]
[1721159793182,0.90386507,3475.7,3475.6,0.30043859]
[1721159793354,1.20670109,3475.9,3475.6,0.61821145]
[1721159793355,0.90386507,3475.9,3475.6,0.61821145]
[1721159793552,0.90386507,3475.7,3475.6,0.30043859]
[1721159793850,1.20670109,3475.8,3475.6,0.30043859]
[1721159794165,0.90400807,3475.7,3475.6,0.30043859]
[1721159794653,1.20670109,3475.8,3475.6,0.30043859]
[1721159795042,0.90390699,3475.7,3475.6,0.30043859]
[1721159795478,0.90390699,3475.8,3475.6,0.91821145]
[1721159796079,0.90390699,3475.8,3475.6,0.30043859]
[1721159796446,1.20670109,3475.8,3475.6,0.30043859]
[1721159796859,4.38356165,3475.8,3475.6,0.30043859]
[1721159797189,4.38356165,3475.8,3474.9,7.37]
[1721159797190,2.87737,3475.4,3474.9,7.37]
[1721159797358,0.90399885,3475.1,3474.4,10.24814]
[1721159797679,0.90399885,3475.0,3474.5,2.8781]
[1721159797881,0.90399885,3475.0,3474.5,3.17868922]
[1721159798299,0.90399885,3475.0,3474.6,2.878]
[1721159798588,0.90399885,3475.2,3474.6,2.878]
[1721159798756,0.90399885,3475.2,3474.6,4.37463862]
[1721159798951,0.90399885,3475.2,3474.6,1.49663862]
[1721159799174,0.90399885,3475.1,3474.6,1.49663862]
[1721159799376,0.90399885,3475.1,3474.5,0.30058922]
[1721159799559,0.90399885,3475.1,3474.5,3.17869922]
[1721159799757,0.90399885,3475.1,3474.6,2.87801]
[1721159800099,0.90399885,3475.3,3474.6,2.87801]
[1721159800966,0.90399885,3475.2,3474.6,2.87801]
[1721159801355,0.90399885,3475.2,3474.6,4.22068192]
[1721159801557,0.90399885,3475.3,3474.6,4.22068192]
[1721159804071,0.90399885,3475.4,3474.6,4.22068192]